Cogmind - Beta 13 *** ADVENTURER MODE // 2024.04.23 @ 11:51:58 // AFD2020/Player2 Player: ash Result: Destroyed by 9K-K2Y(R) with Subdweller Machine Gun Performance ------------- Evolutions (0) 0 Regions Visited (2) 400 Robots Destroyed (12) 60 Value Destroyed (320) 320 Prototype IDs (0) 0 Alien Tech Used (0) 0 Bonus (3) 3 TOTAL SCORE: 783 Bonus ------- Follower Combat Kills 99 Friendly Fire -96 Cogmind --------- Core Integrity 0/250 Matter 300/300 Energy 204/250 System Corruption 0% Temperature Cool (0) Movement Core (350) Ox6 Location -10/Subcaves Parts ------- > --- POWER (1) -------- Ion Engine > --- PROPULSION (2) --- (None) > --- UTILITY (2) ------ Medium Storage Unit Structural Scanner > --- WEAPON (2) ------- Light Assault Rifle Mace > --- INVENTORY (10) --- Aluminum Leg Large Storage Unit Subdweller Optics Signal Interpreter Transport Network Coupler Targeting Computer EM Pulse Gun Medium Laser Subdweller Shrapnel Launcher Peak State ------------ > --- POWER ------------ Ion Engine > --- PROPULSION ------- Aluminum Leg Aluminum Leg > --- UTILITY ---------- Medium Storage Unit Structural Scanner > --- WEAPON ----------- Light Assault Rifle Mace > --- INVENTORY -------- Ion Engine Aluminum Leg Large Storage Unit Subdweller Optics Signal Interpreter Transport Network Coupler Targeting Computer Medium Laser Subdweller Shrapnel Launcher [Rating: 9] Favorites ----------- Power Ion Engine Engine Ion Engine Propulsion Aluminum Leg Leg Aluminum Leg Utility Medium Storage Unit Device Structural Scanner Storage Medium Storage Unit Weapon Light Assault Rifle Energy Gun Medium Laser Ballistic Gun Light Assault Rifle Impact Weapon Mace Build | -11 -10 -10 ------- Run | Yrd Mat Sub Slots Evolved . | . . . Power . | . . . Propulsion . | . . . Utility . | . . . Weapon . | . . . Parts Attached 13 | 6 4 3 Power 2 | 1 . 1 Engine 2 | 1 . 1 Core . | . . . Reactor . | . . . Propulsion 2 | 2 . . Treads . | . . . Leg 2 | 2 . . Wheel . | . . . Hover . | . . . Flight . | . . . Utility 4 | 1 3 . Device 1 | . 1 . Storage 3 | 1 2 . Processor . | . . . Hackware . | . . . Protection . | . . . Artifact . | . . . Weapon 5 | 2 1 2 Energy Gun 2 | 1 . 1 Energy Cannon . | . . . Ballistic Gun 1 | 1 . . Ballistic Cannon . | . . . Launcher . | . . . Special Weapon . | . . . Impact Weapon 2 | . 1 1 Slashing Weapon . | . . . Piercing Weapon . | . . . Special Melee Weapon . | . . . Unidentified Prototypes . | . . . Parts Lost 3 | . . 3 Power 1 | . . 1 Propulsion 2 | . . 2 Utility . | . . . Weapon . | . . . Highest Loss Streak 3 | . . 3 To Critical Strikes . | . . . Average Slot Usage (%) 97 | . 97 98 Engine 13 | . 14 13 Leg 27 | . 28 27 Device 8 | . 6 14 Storage 17 | . 18 14 Energy Gun 12 | . 13 7 Ballistic Gun 14 | . 14 14 Impact Weapon 1 | . . 6 Naked Turns . | . . . Heaviest Build 20 | 13 20 19 Greatest Support 20 | 20 20 20 Greatest Overweight (x) 2 | 2 . 1 Average Overweight (x) . | . . . Largest Inventory Capacity 10 | 8 10 10 Average Capacity 9 | 7 9 10 Most Carried 10 | 3 9 10 Average Carried 6 | 1 5 9 Final Capacity 10 | 8 10 10 Final Carried 9 | 2 8 9 Class Distribution -------------------- 100% | Mutant Dominant Class ---------------- Mutant | -10/Materials Mutant | -10/Subcaves Resources | -11 -10 -10 ----------- Run | Yrd Mat Sub Matter Collected 368 | 128 191 49 Remotely . | . . . Salvage Created 433 | . 312 121 Parts 27 | . 18 9 Haulers Intercepted 1 | . 1 . Recyclers Shooed . | . . . Parts Field Recycled . | . . . Retrieved Matter . | . . . Parts Self-Destructed 3 | . . 3 Prevented 2 | . . 2 Kills | -11 -10 -10 ------- Run | Yrd Mat Sub Combat Hostiles Destroyed 8 | . 5 3 Melee 1 | . . 1 Guns 5 | . 5 . AOE 1 | . . 1 Classes Destroyed 6 | . 5 1 Builder 2 | . 2 . Hauler 1 | . 1 . Watcher 1 | . 1 . Swarmer 1 | . 1 . Grunt 4 | . 4 . Subdweller 3 | . . 3 Best Kill Streak 2 | . 2 1 Combat Bots Only 2 | . 2 1 Max Kills in Single Turn 1 | . 1 1 Gunslinging . | . . . Exploded 1 | . . 1 Melee 1 | . . 1 Uniques/NPCs Destroyed . | . . . Combat | -11 -10 -10 -------- Run | Yrd Mat Sub Hostile Shots Fired 56 | . 21 35 Missed 15 | . 6 9 Damage Taken 575 | . 159 416 Core 105 | . 8 97 Absorbed by Shields . | . . . Ignored by Resistances 166 | . 48 118 Core Remaining (%) 100 | 100 . . Volleys Fired 48 | . 29 19 Largest 2 | . 2 2 Hottest 70 | . 70 60 Shots Fired 94 | . 57 37 Gun 94 | . 57 37 Cannon . | . . . Launcher . | . . . Special . | . . . Kinetic 48 | . 29 19 Thermal 28 | . 28 . Explosive . | . . . Electromagnetic 18 | . . 18 Robot Hit Streak 36 | . 19 36 Robot Miss Streak 1 | . 1 1 Penetration Max . | . . . Secondary Targets 1 | . 1 . Max Gunslinging Chain 1 | . 1 . Shots Hit Robots 84 | . 41 43 Core Hits 25 | . 19 6 Critical Kills 1 | . 1 . Critical Parts Destroyed 1 | . . 1 Critical Strikes 7 | . 6 1 Burn 5 | . 5 . Destroy 1 | . 1 . Smash 1 | . . 1 Melee Attacks 11 | . 1 10 Impact 11 | . 1 10 Slashing . | . . . Piercing . | . . . Sneak Attacks . | . . . Combat Hostiles . | . . . Follow-up Attacks . | . . . Damage Inflicted 866 | . 433 433 Guns 572 | . 433 139 Cannons . | . . . Explosions 90 | . . 90 Melee 204 | . . 204 Ramming . | . . . Kinetic 226 | . 166 60 Thermal 357 | . 267 90 Explosive . | . . . Electromagnetic 79 | . . 79 Impact 204 | . . 204 Slashing . | . . . Piercing . | . . . Highest Corruption . | . . . Average Corruption . | . . . Corruption Purged . | . . . Corruption Blocked . | . . . Overload Shots . | . . . Overflow Damage 44 | . . 44 Projectiles . | . . . Explosions 2 | . . 2 Melee 42 | . . 42 Knockbacks 1 | . . 1 Impact 1 | . . 1 Kinetic . | . . . Secondary . | . . . Self-Inflicted Damage . | . . . Shots . | . . . Rammed . | . . . Targets Rammed . | . . . Kicked . | . . . Crushed . | . . . Highest Temperature 158 | . 158 . Average Temperature 44 | . 44 . Received Heat Transfer 114 | . 102 12 Siege Activations . | . . . Robots Corrupted . | . . . Combat Hostiles . | . . . Parts Fried 1 | . . 1 Impact Corruptions 1 | . . 1 Robots Melted . | . . . Combat Hostiles . | . . . Parts Melted 4 | . 4 . Heat Transferred 1209 | . 1147 62 Parts Sabotaged . | . . . Parts Stolen . | . . . Parts Stripped . | . . . Power Chain Reactions 1 | . . 1 Alert | -11 -10 -10 ------- Run | Yrd Mat Sub Peak Influence 229 | . 229 . Initial . | . . . Average 66 | . 71 . Maximum Alert Level 1 | . 1 . Low Security (%) 98 | 100 98 . Level 1 1 | . 1 . Level 2 . | . . . Level 3 . | . . . Level 4 . | . . . Level 5 . | . . . High Security . | . . . Max Security . | . . . Squads Dispatched . | . . . Investigation . | . . . Extermination . | . . . Reinforcement . | . . . Assault . | . . . Garrison . | . . . Intercept . | . . . Searches Triggered . | . . . Construction Impeded . | . . . Haulers Reinforced . | . . . Active Scanning Responses . | . . . Cargo Convoy Interrupts . | . . . Stealth | -11 -10 -10 --------- Run | Yrd Mat Sub Distress Signals 1 | . 1 . Communications Jammed . | . . . Distress Signals . | . . . Times Spotted 19 | . 12 7 Peak Tracking Total 3 | . 3 2 Tactical Retreats 1 | . . 1 Traps | -11 -10 -10 ------- Run | Yrd Mat Sub Traps Triggered . | . . . Indirectly . | . . . Trap Hack Attempts . | . . . Triggered . | . . . Disarmed . | . . . Reprogrammed . | . . . Reused . | . . . Traps Extracted . | . . . Installed . | . . . Triggered . | . . . Machines | -11 -10 -10 ---------- Run | Yrd Mat Sub Machines Disabled . | . . . Max in Single Turn . | . . . Machines Repaired . | . . . Machines Dismantled . | . . . Machines Sabotaged . | . . . Overloaded Fab Kills . | . . . Hacking | -11 -10 -10 --------- Run | Yrd Mat Sub Machines Accessed 8 | . 8 . Terminals 7 | . 7 . Fabricators . | . . . Repair Stations . | . . . Recycling Units 1 | . 1 . Scanalyzers . | . . . Garrison Access . | . . . Total Hacks 27 | . 27 . Successful 13 | . 13 . Failed 14 | . 14 . Catastrophic 3 | . 3 . Database Lockouts . | . . . Manual 14 | . 14 . Terminals 23 | . 23 . Fabricators . | . . . Repair Stations . | . . . Recycling Units 4 | . 4 . Scanalyzers . | . . . Garrison Access . | . . . Terminal Hacks 8 | . 8 . Record 1 | . 1 . Branch Access Points 1 | . 1 . Machine Index 1 | . 1 . Terminal Index 1 | . 1 . Alert Level 1 | . 1 . Dispatch Records 1 | . 1 . Security Status 1 | . 1 . Transport Status 1 | . 1 . Fabricator Hacks . | . . . Repair Station Hacks . | . . . Recycling Unit Hacks 1 | . 1 . Retrieve Matter 1 | . 1 . Scanalyzer . | . . . Garrison Access Hacks . | . . . Unauthorized Hacks 4 | . 4 . Terminals 3 | . 3 . Botnet 3 | . 3 . Fabricators . | . . . Repair Stations . | . . . Recycling Units 1 | . 1 . Monitor 1 | . 1 . Scanalyzers . | . . . Garrison Access . | . . . Data Cores Recovered . | . . . Used . | . . . Hacking Detections 8 | . 8 . Full Trace Events . | . . . Feedback Events . | . . . Feedback Blocked . | . . . Robot Schematics Acquired . | . . . Robots Built . | . . . Authchips . | . . . Time . | . . . Total Robot Build Rating . | . . . Part Schematics Acquired . | . . . Parts Built . | . . . Authchips . | . . . Time . | . . . Total Part Build Rating . | . . . Parts Repaired . | . . . Time . | . . . Parts Recycled . | . . . Recycled Matter . | . . . Retrieved Matter . | . . . Retrieved Components . | . . . Parts Scanalyzed . | . . . Part Schematics Acquired . | . . . Parts Damaged . | . . . Bothacking | -11 -10 -10 ------------ Run | Yrd Mat Sub Used RIF Installer . | . . . Robots Hacked . | . . . Non-combat . | . . . Combat . | . . . Robot Hacks Applied . | . . . Relay Couplers Released . | . . . Fabnet Peak Effective % . | . . . Robots Rewired . | . . . Allies Hacked . | . . . Hacks Repelled . | . . . Allies | -11 -10 -10 -------- Run | Yrd Mat Sub Total Allies 1 | . 1 . Largest Group 1 | . 1 1 Highest-Rated Group 61 | . 60 61 Highest-Rated Ally 61 | . 60 61 Total Orders . | . . . Ally Attacks 29 | . 7 22 Total Damage 748 | . 240 508 Kills 11 | . 7 4 Allies Corrupted . | . . . Allies Melted . | . . . Intel | -11 -10 -10 ------- Run | Yrd Mat Sub Robot Analysis Total . | . . . Derelict Logs Recovered . | . . . Drone Launches . | . . . Drone Recoveries . | . . . Exploration | -11 -10 -10 ------------- Run | Yrd Mat Sub Turns Passed 947 | 44 646 257 Spaces Moved 604 | 27 444 133 Core 7 | 7 . . Treads . | . . . Legs 597 | 20 444 133 Wheels . | . . . Hover . | . . . Flight . | . . . Fastest Speed 50 | 50 120 120 Average Speed 120 | 121 120 121 Slowest Speed 190 | 190 120 190 Overloaded Moves . | . . . Propulsion Burnouts . | . . . Robots Hopped . | . . . Cave-ins Triggered . | . . . Exploration Rate (%) 27 | 3 61 17 Regions Visited 2 Branch Regions 1 Pre-discovered Areas . | . . . Known Exits Taken . | . . . Unknown Exits Taken 2 | 1 1 . Scrap Searched 1 | . . 1 Spaces Dug 1 | . 1 . Terrain Destroyed 9 | . 1 8 Melee 1 | . 1 . Projectile . | . . . AOE 8 | . . 8 Terrain Rammed . | . . . Walls Destroyed . | . . . Machines Disabled . | . . . Actions | -11 -10 -10 --------- Run | Yrd Mat Sub Total 720 | 35 505 180 Wait 25 | . 15 10 Move 602 | 26 443 133 Hop . | . . . Pick Up 14 | 3 8 3 Fast Attach 6 | 5 1 . Attach 6 | 1 2 3 Detach 3 | . 2 1 Swap 1 | . 1 . Drop 4 | . 3 1 Fire 48 | . 29 19 Melee 11 | . 1 10 Ram . | . . . Kick . | . . . Crush . | . . . Escape Stasis . | . . . Rewire . | . . . Trap . | . . . Miscellaneous . | . . . Route ------- -11/Scrapyard -10/Materials (discovered 4 exits: [*Mat x2] / *Min / [*Sub]) -10/Subcaves History --------- Turn | Location | Event 2 | -11/Scrapyard | Met Revision 17 16 | -11/Scrapyard | Discovered new exit (range 15) 45 | -11/Scrapyard | Entered Materials 278 | -10/Materials | Discovered new exit (range 13) 316 | -10/Materials | Build established: Mutant 425 | -10/Materials | Identified exit to Mines 494 | -10/Materials | Discovered new exit (range 11) 598 | -10/Materials | Discovered new exit (range 5) 668 | -10/Materials | Discovered new exit (range 16) 691 | -10/Materials | Entered Subcaves 918 | -10/Subcaves | Core integrity fell below 50% 934 | -10/Subcaves | Core integrity fell below 20% 948 | -10/Subcaves | Destroyed by 9K-K2Y(R) with Subdweller Machine Gun Last Messages --------------- 00791_ Player 2 attaches Lgt. Treads. 00809_ Q5-J59(R) destroyed. 00817_ FZ-M2S(R) affixes Scrap Shield Fragment to Scrap Shield. 00817_ FZ-M2S(R) suffers critical hit (Smash). 00817_ FZ-M2S(R) system corrupted by crushing effect. 00817_ FZ-M2S(R) knocked back. 00827_ Acquired 13 matter. 00832_ Acquired Sub. Optics. 00833_ Dropped EM Pulse Gun. 00834_ Acquired EM Pulse Gun. 00892_ 4P-WVL(R) suffers critical hit (Smash). 00892_ Destroyed Sub. Monowheel. 00892_ 4P-WVL(R) system corrupted by crushing effect. 00893_ 4P-WVL(R) system terminally corrupted. 00893_ Sub. Power Source fried. 00895_ Acquired 11 matter. 00926_ Ion Engine destroyed. 00934_ 9K-K2Y(R) knocked back. 00935_ Aluminum Leg destroyed. 00946_ VY-JAF(R) destroyed. Map ----- +----------------------------------------------------+ | ?????????????????????????????????????????????????? | | ?????????????????????????????????????????????????? | | ?????????????????????????????????????????????????? | | ?????????????????????????????????????????????????? | | ?????????????????????????????????????????????????? | | ?????????????????????????????????????????????????? | | ?????????????????????????????????????????????????? | | ?????????????????????????????????????????????????? | | ?????????????????????????????????????????????????? | | ?????????????????????????????????????????????????? | | ?????????????????????????????????????????????????? | | ?????????????????????????????????????????????????? | | ?????????????????????????????????????????????????? | | ?????????????????????????????????????????????????? | | ?????????????????????????????????????????????????? | | ????????????? ##?????????????????????????????????? | | ???????????? ##????????## ??###????????????????? | | ???????????? ???####### ? ##????????????????? | | ???????????? ?######## ????????????????? | | ???????????? ?### ??????????????????? | | ?????????????? ## """" ??????????????????? | | ??????????????## ## """"##??????????????????? | | ??????????????### """"## ????? "?????????? | | ???????????????## "!""###??? ##?????????? | | ???????????????## &%! # ##?????????? | | ???????????????## @&R # ?? "#?????????? | | ??????????????### """ "###??????????????? | | ??????????????### ##""##"###??????????????? | | ?????????????### ###"##"""???????????????? | | ?????????????## ######??????????????????? | | ?????????????## ## ######??????????????????? | | ?????????????########## ###????????????????????? | | ?????????????########## ###??""""??????????????? | | ?????????????????????### ##?""""##?????????????? | | ????????????????????? ### ###"""######??????????? | | ??????????????????????"## ####" #####??????????? | | ?????????????????????? ## ### ### ##??????????? | | ??????????????????##" "# ## # ##??????????? | | ??????????????????### ## ##??????????? | | ??????????????????## #" ##??????????? | | ??????????????????## ##??????????? | | ??????????????????## ##??????????? | | ??????????????????## # ##??????????? | | ????????????????##"" ###" ## ###?????????? | | ????????????????##"? "## ## ####????????? | | ???????????????? ??? ## %## ###????????? | | ?????????????????????? ## ##????????? | | ???????????????????????## ##????????? | | ???????????????????????####### ## ###???????? | | ???????????????????????######## ### ###???????? | +----------------------------------------------------+ Best States ------------- Heat Dissipation 25 Energy Generation 10 Energy Capacity 250 Matter Stores 300 Matter Capacity 400 Sight Range 16 Terrain Scan Density 10 Resistance: KI 20 Resistance: TH 20 Resistance: EX 20 Resistance: EM 20 Resistance: I 20 Resistance: S 20 Resistance: P 20 Evasion (%) 55 Offensive Hacking 10 Item Schematics ----------------- None Robot Schematics ------------------ None Fabricated ------------ Nothing Alien Tech Used ----------------- None Achievements -------------- None Challenges ------------ None Player 2 | -11 -10 -10 ---------- Run | Yrd Mat Sub Slots Evolved . | . . . Power . | . . . Propulsion . | . . . Utility . | . . . Weapon . | . . . Parts Attached 14 | . 10 4 Parts Lost 4 | . . 4 Damage Taken 596 | . 10 586 Core 149 | . . 149 Player 2/Cogmind (%) 58 | . . 60 Absorbed by Shields . | . . . Damage Inflicted 748 | . 240 508 Player 2/Cogmind (%) 46 | . 35 53 Combat Hostiles Destroyed 7 | . 3 4 Player 2/Cogmind (%) 46 | . 37 57 Game ------ Seed SchematicHackingWings Manual? 0 Play Time 00:18:06 Cumulative 41.4 hours Start 2024.04.23 @ 11:33:53 End 2024.04.23 @ 11:51:58 Sessions 3 Manual Loads 0 Difficulty Adventurer Special Mode AFD2020/Player2 Game No. 42 Rogue 2 Adventurer 40 Explorer 0 Win Type - Total 2 Types 2/0/0/0/0/0/0/0/0 Lore% 45 Gallery% 41 Achievement% 40 Wizard Run 0 Options --------- Layout 0 ASCII 0 Keyboard 1 Movement Numpad Keybinds 0 Fullscreen 1 Font 24/Smallcaps Map View 76x50 Zoom Use 0% Tactical HUD 1 Map Filters NONE Filters NONE Steam 1 RUN: f189b9f8-33ec-480b-8312-240c349cd12b